Cogmind - Beta 10.2 @@@ ROGUE MODE // 2021.02.25 @ 02:12:06 Player: Locus Result: Destroyed by G-34 Mercenary with Small Laser Performance ------------- Evolutions (0) 0 Regions Visited (1) 200 Robots Destroyed (15) 75 Value Destroyed (228) 228 Prototype IDs (2) 40 Alien Tech Used (0) 0 Bonus (0) 0 TOTAL SCORE: 543 Bonus ------- None Cogmind --------- Core Integrity 0/250 Matter 300/300 Energy 100/100 System Corruption 0% Temperature Cool (12) Movement Core (400) Ox7 Location -10/Materials Parts ------- > --- POWER (1) -------- (None) > --- PROPULSION (2) --- (None) > --- UTILITY (2) ------ Medium Storage Unit Large Storage Unit > --- WEAPON (2) ------- (None) > --- INVENTORY (14) --- Ion Engine Wheel Wheel Wheel High-capacity Matter Pod (15) Structural Scanner Signal Interpreter Medium Armor Plating Medium Armor Plating Hardened Light Armor Plating Particle Gun Particle Gun Grenade Launcher Peak State ------------ > --- POWER ------------ Ion Engine > --- PROPULSION ------- Wheel Wheel > --- UTILITY ---------- Large Storage Unit Structural Scanner > --- WEAPON ----------- Particle Gun Light Assault Rifle > --- INVENTORY -------- Ion Engine Wheel Wheel Wheel Medium Storage Unit High-capacity Matter Pod Signal Interpreter Medium Armor Plating Medium Armor Plating Grenade Launcher [Rating: 9] Favorites ----------- Power Ion Engine Engine Ion Engine Propulsion Wheel Treads Light Treads Leg Aluminum Leg Wheel Wheel Utility Large Storage Unit Device Structural Scanner Storage Large Storage Unit Weapon Light Assault Rifle Energy Gun Medium Laser Ballistic Gun Light Assault Rifle Build | -11 -10 ------- Run | Scr Mat Slots Evolved . | . . Power . | . . Propulsion . | . . Utility . | . . Weapon . | . . Parts Attached 20 | 2 18 Power 2 | . 2 Engine 2 | . 2 Core . | . . Reactor . | . . Propulsion 5 | 2 3 Treads 1 | . 1 Leg . | . . Wheel 4 | 2 2 Hover . | . . Flight . | . . Utility 9 | . 9 Device 5 | . 5 Storage 4 | . 4 Processor . | . . Hackware . | . . Protection . | . . Artifact . | . . Weapon 4 | . 4 Energy Gun 3 | . 3 Energy Cannon . | . . Ballistic Gun 1 | . 1 Ballistic Cannon . | . . Launcher . | . . Special Weapon . | . . Impact Weapon . | . . Slashing Weapon . | . . Piercing Weapon . | . . Special Melee Weapon . | . . Unidentified Prototypes . | . . Parts Lost 5 | . 5 Power 1 | . 1 Propulsion 2 | . 2 Utility . | . . Weapon 2 | . 2 Highest Loss Streak 5 | . 5 Average Slot Usage (%) 96 | . 96 Engine 14 | . 14 Wheel 25 | . 25 Device 10 | . 10 Storage 17 | . 17 Energy Gun 15 | . 15 Ballistic Gun 11 | . 11 Naked Turns . | . . Heaviest Build 33 | 10 33 Greatest Support 26 | 26 26 Greatest Overweight (x) 1 | . 1 Average Overweight (x) . | . . Largest Inventory Capacity 14 | 6 14 Average Capacity 10 | 6 10 Most Carried 14 | 6 14 Average Carried 9 | 6 10 Final Capacity 14 | 6 14 Final Carried 13 | 6 13 Class Distribution -------------------- 100% | Mutant Dominant Class ---------------- Mutant | -10/Materials Resources | -11 -10 ----------- Run | Scr Mat Matter Collected 462 | 220 242 Remotely . | . . Salvage Created 544 | 72 472 Parts 32 | 1 31 Haulers Intercepted 2 | . 2 Recyclers Shooed . | . . Parts Field Recycled . | . . Retrieved Matter . | . . Parts Self-Destructed . | . . Prevented . | . . Kills | -11 -10 ------- Run | Scr Mat Combat Hostiles Destroyed 10 | . 10 Guns 10 | . 10 Classes Destroyed 5 | 1 4 Hauler 2 | . 2 Recycler 2 | 1 1 Watcher 1 | . 1 Swarmer 6 | . 6 Grunt 4 | . 4 Best Kill Streak 5 | 1 5 Combat Bots Only 3 | . 3 Max Kills in Single Turn 2 | 1 2 Gunslinging 1 | . 1 Exploded . | . . Melee . | . . Uniques/NPCs Destroyed . | . . Combat | -11 -10 -------- Run | Scr Mat Damage Taken 696 | . 696 Core 255 | . 255 Absorbed by Shields . | . . Core Remaining (%) 100 | 100 . Volleys Fired 49 | 6 43 Largest 2 | 2 2 Hottest 90 | 90 90 Shots Fired 97 | 12 85 Gun 97 | 12 85 Cannon . | . . Launcher . | . . Special . | . . Kinetic 36 | . 36 Thermal 61 | 12 49 Explosive . | . . Electromagnetic . | . . Robot Hit Streak 14 | 3 14 Robot Miss Streak 4 | 1 4 Penetration Max . | . . Secondary Targets 2 | . 2 Max Gunslinging Chain 1 | . 1 Shots Hit Robots 60 | 9 51 Core Hits 25 | 2 23 Critical Hits 1 | . 1 Critical Kills 1 | . 1 Critical Parts Destroyed . | . . Melee Attacks . | . . Impact . | . . Slashing . | . . Piercing . | . . Sneak Attacks . | . . Combat Hostiles . | . . Follow-up Attacks . | . . Damage Inflicted 648 | 101 547 Guns 648 | 101 547 Cannons . | . . Explosions . | . . Melee . | . . Ramming . | . . Kinetic 160 | . 160 Thermal 488 | 101 387 Explosive . | . . Electromagnetic . | . . Impact . | . . Slashing . | . . Piercing . | . . Highest Corruption . | . . Average Corruption . | . . Corruption Purged . | . . Overload Shots . | . . Overflow Damage . | . . Projectiles . | . . Explosions . | . . Melee . | . . Knockbacks . | . . Impact . | . . Kinetic . | . . Secondary . | . . Self-Inflicted Damage . | . . Shots . | . . Rammed . | . . Targets Rammed . | . . Kicked . | . . Crushed . | . . Highest Temperature 332 | 180 332 Average Temperature 77 | 92 74 Received Heat Transfer 318 | . 318 Effects 1 | . 1 Interference 1 | . 1 Siege Activations . | . . Robots Corrupted . | . . Combat Hostiles . | . . Parts Fried . | . . Impact Corruptions . | . . Robots Melted . | . . Combat Hostiles . | . . Parts Melted 2 | . 2 Heat Transferred 1335 | 261 1074 Parts Sabotaged . | . . Parts Stolen . | . . Parts Stripped . | . . Power Chain Reactions . | . . Missiles Intercepted . | . . Alert | -11 -10 ------- Run | Scr Mat Peak Influence 279 | 5 279 Initial 3 | . 3 Average 91 | 2 97 Maximum Alert Level 1 | . 1 Low Security (%) 87 | 100 86 Level 1 12 | . 13 Level 2 . | . . Level 3 . | . . Level 4 . | . . Level 5 . | . . High Security . | . . Max Security . | . . Squads Dispatched 3 | . 3 Investigation 1 | . 1 Extermination . | . . Reinforcement 2 | . 2 Assault . | . . Garrison . | . . Intercept . | . . Construction Impeded . | . . Haulers Reinforced . | . . Stealth | -11 -10 --------- Run | Scr Mat Distress Signals 1 | . 1 Communications Jammed . | . . Distress Signals . | . . Times Spotted 16 | . 16 Peak Tracking Total 4 | . 4 Tactical Retreats . | . . Traps | -11 -10 ------- Run | Scr Mat Traps Triggered 3 | . 3 Indirectly . | . . Trap Hack Attempts . | . . Triggered . | . . Disarmed . | . . Reprogrammed . | . . Reused . | . . Traps Extracted . | . . Installed . | . . Triggered . | . . Machines | -11 -10 ---------- Run | Scr Mat Machines Disabled . | . . Max in Single Turn . | . . Machines Sabotaged . | . . Garrisons Compromised . | . . Overloaded Fab Kills . | . . Fab Network Shutdowns . | . . Hacking | -11 -10 --------- Run | Scr Mat Machines Accessed 6 | . 6 Terminals 5 | . 5 Fabricators . | . . Repair Stations . | . . Recycling Units 1 | . 1 Scanalyzers . | . . Garrison Access . | . . Total Hacks 21 | . 21 Successful 10 | . 10 Failed 11 | . 11 Catastrophic . | . . Database Lockouts . | . . Manual 8 | . 8 Terminals 19 | . 19 Fabricators . | . . Repair Stations . | . . Recycling Units 2 | . 2 Scanalyzers . | . . Garrison Access . | . . Terminal Hacks 4 | . 4 Prototype ID Bank 1 | . 1 Unreport Threat 1 | . 1 Locate Traps 2 | . 2 Fabricator Hacks . | . . Repair Station Hacks . | . . Recycling Unit Hacks 1 | . 1 Report Inventory 1 | . 1 Scanalyzer . | . . Garrison Access Hacks . | . . Unauthorized Hacks 5 | . 5 Terminals 4 | . 4 Botnet 4 | . 4 Fabricators . | . . Repair Stations . | . . Recycling Units 1 | . 1 Reject 1 | . 1 Scanalyzers . | . . Garrison Access . | . . Data Cores Recovered . | . . Used . | . . Hacking Detections 5 | . 5 Full Trace Events . | . . Feedback Events . | . . Feedback Blocked . | . . Robot Schematics Acquired . | . . Robots Built . | . . Matter . | . . Time . | . . Total Robot Build Rating . | . . Part Schematics Acquired . | . . Parts Built . | . . Matter . | . . Time . | . . Total Part Build Rating . | . . Parts Repaired . | . . Time . | . . Parts Recycled . | . . Recycled Matter . | . . Retrieved Matter . | . . Retrieved Components . | . . Parts Scanalyzed . | . . Part Schematics Acquired . | . . Parts Damaged . | . . Bothacking | -11 -10 ------------ Run | Scr Mat Used RIF Installer . | . . Robots Hacked . | . . Non-combat . | . . Combat . | . . Robot Hacks Applied . | . . Relay Couplers Released . | . . Robots Rewired . | . . Allies Hacked . | . . Hacks Repelled . | . . Allies | -11 -10 -------- Run | Scr Mat Total Allies . | . . Largest Group . | . . Highest-Rated Group . | . . Highest-Rated Ally . | . . Total Orders . | . . Ally Attacks . | . . Total Damage . | . . Kills . | . . Allies Corrupted . | . . Allies Melted . | . . Intel | -11 -10 ------- Run | Scr Mat Robot Analysis Total . | . . Derelict Logs Recovered . | . . Drone Launches . | . . Drone Recoveries . | . . Exploration | -11 -10 ------------- Run | Scr Mat Turns Passed 717 | 40 677 Spaces Moved 476 | 17 459 Core . | . . Treads 8 | . 8 Legs 8 | 8 . Wheels 460 | 9 451 Hover . | . . Flight . | . . Fastest Speed 90 | 90 90 Average Speed 92 | 104 91 Slowest Speed 180 | 120 180 Overloaded Moves . | . . Propulsion Burnouts . | . . Robots Hopped . | . . Cave-ins Triggered . | . . Exploration Rate (%) 41 | 2 80 Regions Visited 1 Branch Regions . Pre-discovered Areas . | . . Known Exits Taken . | . . Unknown Exits Taken 1 | 1 . Scrap Searched . | . . Spaces Dug . | . . Terrain Destroyed . | . . Melee . | . . Projectile . | . . AOE . | . . Terrain Rammed . | . . Walls Destroyed . | . . Machines Disabled . | . . Actions | -11 -10 --------- Run | Scr Mat Total 666 | 26 640 Wait 80 | 2 78 Move 475 | 16 459 Hop . | . . Pick Up 26 | . 26 Fast Attach 5 | . 5 Attach 2 | . 2 Detach . | . . Swap 13 | 2 11 Drop 16 | . 16 Fire 49 | 6 43 Melee . | . . Ram . | . . Kick . | . . Crush . | . . Escape Stasis . | . . Rewire . | . . Trap . | . . Miscellaneous . | . . Route ------- -11/Scrapyard -10/Materials (discovered 3 exits: [*Mat x3]) History --------- Turn | Location | Event 1 | -11/Scrapyard | Discovered new exit (range 3) 41 | -11/Scrapyard | Entered Materials 305 | -10/Materials | Build established: Mutant 312 | -10/Materials | Discovered new exit (range 16) 448 | -10/Materials | Discovered new exit (range 10) 506 | -10/Materials | Discovered new exit (range 9) 695 | -10/Materials | Core integrity fell below 50% 709 | -10/Materials | Core integrity fell below 20% 718 | -10/Materials | Destroyed by G-34 Mercenary with Small Laser Last Messages --------------- 00659_ Acquired Wheel. 00660_ Extracted 36 matter. 00661_ Acquired Hcp. Matter Pod. 00663_ Acquired Ion Engine. 00664_ Triggered Alarm Trap. 00664_ An alarm sounds. 00664_ ALERT: Alarm triggered, dispatching investigation squad. 00676_ G-34 Mercenary destroyed. 00676_ Switching to secondary target: G-34 Mercenary. 00680_ Overheating: System interference. 00680_ Lgt. Assault Rifle temporarily disabled. 00680_ U-05 Engineer lays Concrete. 00682_ Particle Gun destroyed. 00683_ U-05 Engineer lays Concrete. 00684_ Lgt. Assault Rifle destroyed. 00685_ Wheel destroyed. 00685_ U-05 Engineer lays Concrete. 00691_ U-05 Engineer destroyed. 00702_ Wheel destroyed. 00712_ Ion Engine destroyed. Map ----- +----------------------------------------------------+ | ????# #??????????# #????????????? | | ##### #??????????# #????????????? | | + #??????????# #????????????? | | """ # #??????????# #????????????? | | """ # #??????????# #????????????? | | """ # #??????????# #????????????? | | # #??????????# #????????????? | | """ # ############ #????????????? | | """ + + ! # #?????? ????? | | """ # ## # #???? """????? | | # ## """"""" # #?? """????? | | ##### ## """"""" # # " """ ???? | | + + """"""??+ + #??? | | # ## """"""??# # #??? | | + ## """""???# # #??? | | ## ### ???# #? #??? | | ##+#############[ #??########??? | | # ## =!#????????????? | | # """ """ ## !#????????????? | | # """ """ ## #???????###??? | | #####!! ! """ """ ## #??????!!!##?? | | ????#!! ## #????? !#?? | | ????#! ## ##???! !??? | | ????#########+##### #### #????? | | ???????????# |g= #????? | | ????????#### T @ g%<=#????? | | #######?# **%=#????? | | #?# ######### ########????? | | ### #????######+#######???????? | | #????# #???????? | | #####????# """ """ #???????? | | #????????# """ """ #???????? | | #######????????# """ """ #???????? | | #??????????????# !#???????? | | ???????????????##############???????? | | | | | | | | | | | | | | | | | | | | | | | | | | | | | | | +----------------------------------------------------+ Best States ------------- Heat Dissipation 25 Energy Generation 10 Energy Capacity 250 Matter Stores 300 Matter Capacity 300 Sight Range 16 Robot Scan Range 10 Terrain Scan Density 10 Evasion (%) 44 Recoil Reduction 1 Item Schematics ----------------- None Robot Schematics ------------------ None Fabricated ------------ Nothing Alien Tech Used ----------------- None Achievements -------------- None Challenges ------------ None Game ------ Seed OpticalImprovedRipper Manual? 0 Play Time 00:15:42 Cumulative 29.6 hours Start 2021.02.25 @ 01:57:59 End 2021.02.25 @ 02:12:06 Sessions 1 Manual Loads 0 Difficulty Rogue Special Mode None Game No. 20 Rogue 20 Adventurer 0 Explorer 0 Win Type - Total 0 Types 0/0/0/0/0/0/0/0/0 Lore% 28 Gallery% 32 Achievement% 28 Wizard Run 0 Options --------- ASCII 0 Keyboard 0 Movement Numpad Keybinds 0 Fullscreen 0 Font 16/SmallcapsGlow Map View 76x50 Tactical HUD 1 Map Filters NONE Filters NONE Steam X RUN: d8590882-de0e-45e1-9c18-f1b1462b0085